bitfinex/quotes_ETHUSD_20250630
["timestamp","ask_amount","ask_price","bid_price","bid_amount"]
[1751312615622,3.9756689,2515.3,2515.2,6.8024]
[1751312616345,5.6379352,2515.4,2515.2,6.8024]
[1751312616553,3.9756689,2515.3,2515.2,6.8024]
[1751312617325,3.9756689,2515.3,2515.2,6.60989643]
[1751312617656,3.97601042,2515.1,2514.6,11.16626449]
[1751312617954,4.75874314,2515.0,2514.9,0.1984]
[1751312619448,0.7826,2515.0,2514.9,0.1984]
[1751312621639,4.8032092,2515.2,2514.9,0.1984]
[1751312622044,0.8273,2515.2,2514.9,4.17459698]
[1751312622244,4.80111654,2515.4,2515.1,0.1984]
[1751312622973,0.8256,2515.4,2515.1,0.1984]
[1751312623145,0.02,2515.4,2515.2,3.9757647]
[1751312623335,0.02,2515.4,2515.3,0.1984]
[1751312626356,0.02,2515.4,2515.3,4.1740689]
[1751312627640,0.02,2515.4,2515.3,5.81435165]
[1751312629946,0.02,2515.4,2515.3,1.83868275]
[1751312630262,0.02,2515.4,2515.3,6.7974]
[1751312630448,0.02,2515.4,2515.3,10.7730689]
[1751312630649,0.02,2515.4,2515.3,6.7974]
[1751312631240,0.02,2515.4,2515.3,10.7730689]
[1751312631441,0.02,2515.4,2515.3,6.7974]
[1751312631958,0.02,2515.4,2515.3,0.1984]
[1751312632165,0.02,2515.4,2515.3,6.7974]
[1751312637397,0.02,2515.4,2515.3,10.7730689]
[1751312637691,0.02,2515.4,2515.3,22.79795823]
[1751312638433,0.02,2515.4,2515.3,23.28265823]
[1751312638990,0.01,2515.8,2515.3,23.28265823]
[1751312638991,0.01,2515.8,2515.7,15.00973676]
[1751312639151,0.01,2515.8,2515.7,21.60673676]
[1751312639354,0.01,2515.8,2515.7,21.80513676]
[1751312639566,0.01,2515.8,2515.7,25.03036817]
[1751312641281,0.01,2515.8,2515.7,18.43336817]
[1751312641484,0.01,2515.8,2515.7,27.08036817]
[1751312641857,0.01,2515.8,2515.7,28.24663266]
[1751312642058,0.01,2515.8,2515.7,28.64052166]
[1751312642265,0.01,2515.8,2515.7,27.08036817]
[1751312642448,0.01,2515.8,2515.7,28.64052166]
[1751312642785,0.01,2515.8,2515.7,25.02836817]
[1751312642985,0.01,2515.8,2515.7,24.54366817]
[1751312644066,0.01,2515.8,2515.7,17.94866817]
[1751312644384,0.01,2515.8,2515.7,24.54366817]
[1751312645885,0.7909,2516.2,2515.8,3.97484775]
[1751312646059,0.7909,2516.2,2515.9,6.595]
[1751312646259,0.7909,2516.2,2516.1,0.1984]
[1751312646502,0.7909,2516.2,2515.7,10.0]
[1751312646503,1.66479343,2516.2,2515.7,10.0]
[1751312646785,3.97457238,2516.0,2515.9,0.1984]
[1751312646985,3.97377309,2516.5,2515.4,1.16246184]
[1751312647189,3.97510497,2515.7,2515.5,6.594]
[1751312647394,3.97510497,2515.7,2515.5,6.7924]
[1751312647571,3.97496547,2515.8,2515.5,6.7924]
[1751312647883,4.17303323,2516.0,2515.5,6.7924]
[1751312647884,0.1984,2516.0,2515.5,6.7924]
[1751312648086,4.17217013,2516.6,2515.8,0.5247]
[1751312648292,0.1984,2516.6,2515.9,6.7914]
[1751312648457,12.05,2516.8,2515.9,6.7914]
[1751312648458,3.97451941,2516.1,2515.9,6.7914]
[1751312648787,13.97331432,2516.8,2515.4,13.9755085]
[1751312648788,3.9734573,2516.7,2515.4,1.16246184]
[1751312648990,0.7994,2515.7,2515.6,0.1984]
[1751312649377,4.77443676,2515.7,2515.6,0.1984]
[1751312649583,4.77443676,2515.7,2515.5,0.1984]
[1751312649887,4.77443676,2515.7,2515.5,6.7914]
[1751312650091,4.77443676,2515.7,2515.5,0.1984]
[1751312650255,3.97519478,2515.6,2515.5,6.7914]
[1751312650998,0.7994,2515.7,2515.5,6.7914]
[1751312650999,4.77451101,2515.7,2515.5,6.7914]
[1751312651893,3.97519478,2515.6,2515.5,6.7914]
[1751312652105,3.97519478,2515.6,2515.5,0.1984]
[1751312652277,3.97519478,2515.6,2515.5,6.7914]
[1751312652469,3.97519478,2515.6,2515.5,0.1984]
[1751312652676,3.97519478,2515.6,2515.5,6.7914]
[1751312653463,4.77451926,2515.7,2515.5,6.7914]
[1751312653860,3.97519478,2515.6,2515.5,0.1984]
[1751312654060,5.66930589,2515.7,2515.2,1.56015349]
[1751312654061,3.9756689,2515.3,2515.2,0.1984]
[1751312654303,3.97611434,2515.1,2514.9,1.16246184]
[1751312654487,3.97611434,2515.1,2515.0,8.35155349]
[1751312654801,3.97611434,2515.1,2515.0,1.36222572]
[1751312654969,1.0027,2515.4,2515.0,1.36222572]
[1751312654970,3.9756689,2515.3,2515.0,0.1984]
[1751312655166,0.8043,2515.7,2515.1,0.5247]
[1751312655379,4.77946958,2515.7,2515.2,6.7914]
[1751312655578,3.97521191,2515.6,2515.2,6.7914]
[1751312657306,3.97520768,2515.6,2515.2,6.7914]
[1751312657675,3.97537332,2515.5,2515.2,6.7914]
[1751312657876,3.97537332,2515.5,2514.7,1.16382572]
[1751312657877,3.97606149,2515.1,2514.7,1.16382572]
[1751312658104,3.97606149,2515.1,2515.0,0.1984]
[1751312660407,0.8283,2515.3,2514.9,6.592]
[1751312660703,3.97597429,2515.2,2514.9,6.592]
[1751312661006,3.97599473,2515.1,2514.9,6.592]
[1751312661179,3.97614314,2515.0,2514.9,6.592]
[1751312661580,3.97598505,2515.1,2514.9,6.592]
[1751312661987,3.97614314,2515.0,2514.9,6.592]
[1751312662193,3.97614314,2515.0,2514.8,0.1984]
[1751312664112,3.97605981,2515.1,2514.8,0.1984]
[1751312664919,4.47614945,2515.2,2514.8,0.1984]
[1751312665105,3.9759901,2515.1,2514.8,0.1984]
[1751312665301,3.97616653,2515.0,2514.8,0.1984]
[1751312665609,4.47615683,2515.2,2514.8,0.1984]
[1751312665798,3.97599133,2515.1,2514.8,0.1984]
[1751312667276,4.47615195,2515.2,2514.8,0.1984]
[1751312667519,5.00240256,2515.3,2514.8,0.1984]
[1751312667520,1.0267,2515.3,2514.8,4.17474598]
[1751312667686,0.1984,2515.6,2515.1,0.1984]
[1751312667890,0.1984,2515.6,2514.9,4.52630124]
[1751312667891,3.97522146,2515.6,2515.2,6.7894]
[1751312668224,3.97533244,2515.6,2515.2,6.7894]
[1751312668382,3.9751213,2515.7,2515.2,6.7894]
[1751312668584,0.75518213,2515.6,2515.2,6.7894]
[1751312668794,4.73042197,2515.6,2515.2,6.7894]
[1751312668994,0.75518213,2515.6,2515.2,6.7894]
[1751312669707,4.99544565,2515.8,2515.2,10.7652246]
[1751312670131,4.99544565,2515.8,2515.2,6.7894]
[1751312670487,4.99544565,2515.8,2515.2,10.7652045]
[1751312671315,3.97506337,2515.7,2515.2,6.7894]
[1751312672423,1.0205,2515.8,2515.3,3.97558443]
[1751312672718,1.0205,2515.8,2515.4,0.1984]
[1751312672905,5.49494833,2515.8,2515.4,0.1984]
[1751312673219,1.52003065,2515.8,2515.4,0.1984]
[1751312673520,3.97505651,2515.7,2515.4,0.1984]
[1751312674218,3.97535281,2515.5,2515.4,0.1984]
[1751312674792,4.80495281,2515.5,2515.4,0.1984]
[1751312674993,1.70760389,2515.5,2515.4,0.1984]
[1751312675525,5.6829567,2515.5,2515.4,0.1984]
[1751312676519,3.97554417,2515.4,2515.2,6.59]
[1751312676722,1.90600389,2515.5,2515.0,0.1984]
[1751312676923,4.80568216,2515.1,2514.7,6.589]
[1751312677227,4.80568216,2515.1,2514.8,0.1984]
[1751312677627,3.97630124,2514.9,2514.8,0.1984]
[1751312677924,3.97625486,2515.0,2514.8,0.1984]
[1751312678117,4.80567045,2515.1,2514.8,0.1984]
[1751312678315,5.70366396,2515.1,2514.8,0.1984]
[1751312678498,3.97630124,2514.9,2514.8,0.1984]
[1751312678696,3.97652688,2514.8,2514.6,0.1984]
[1751312679311,3.97639108,2514.9,2514.6,0.1984]
[1751312680330,1.92599351,2515.1,2514.6,0.1984]
[1751312680625,5.00414031,2515.1,2514.6,0.1984]
[1751312681331,3.97623287,2515.0,2514.6,0.1984]
[1751312681827,0.1984,2515.1,2514.6,0.1984]
[1751312682128,3.97616344,2515.0,2514.8,0.1984]
[1751312682435,3.97630124,2514.9,2514.8,0.1984]
[1751312682808,3.97660558,2514.8,2514.4,0.5247]
[1751312683013,3.97660558,2514.8,2514.6,0.1984]
[1751312683332,3.97662822,2514.7,2514.6,0.1984]
[1751312684652,4.77780558,2514.8,2514.6,0.1984]
[1751312685502,0.79523501,2514.9,2514.6,0.1984]
[1751312685698,3.9762222,2515.0,2514.6,0.1984]
[1751312685925,4.87127748,2515.0,2514.6,0.1984]
[1751312688138,0.89505528,2515.0,2514.7,0.5247]
[1751312688336,0.1984,2515.2,2514.7,0.7231]
[1751312688538,3.97558401,2515.4,2514.8,3.97639555]
[1751312688738,3.97567267,2515.3,2514.9,0.1984]
[1751312689236,3.97586757,2515.2,2514.9,0.1984]
[1751312689442,3.9757461,2515.3,2514.9,0.1984]
[1751312689652,5.07100719,2515.3,2514.9,0.1984]
[1751312690008,3.97586993,2515.2,2514.9,0.1984]
[1751312690207,3.9759124,2515.2,2514.9,0.1984]
[1751312690647,3.97599469,2515.1,2514.9,0.1984]
[1751312691140,0.7749,2515.0,2514.9,0.1984]
[1751312691436,3.97607605,2515.1,2514.9,0.1984]
[1751312691637,4.9582831,2515.1,2514.9,0.1984]
[1751312692157,3.97607605,2515.1,2514.9,0.1984]
[1751312692709,3.97614314,2515.0,2514.9,0.1984]
[1751312693044,3.97645754,2514.9,2514.6,0.1984]
[1751312693542,3.97622762,2515.0,2514.6,0.1984]
[1751312693739,4.17450051,2515.1,2514.6,0.1984]
[1751312693939,3.9761509,2515.0,2514.6,0.1984]
[1751312694141,5.17655668,2515.1,2514.3,11.68852572]
[1751312694142,0.7859,2514.7,2514.3,1.16382572]
[1751312694345,3.97686995,2514.6,2514.0,1.16382572]
[1751312694511,3.97679893,2514.6,2514.1,3.97742857]
[1751312694711,3.97679893,2514.6,2514.0,5.14146375]
[1751312695115,3.97679893,2514.6,2514.0,3.97763803]
[1751312695535,3.97679893,2514.6,2513.9,10.56483041]
[1751312695536,3.97679893,2514.6,2514.1,3.97755658]
[1751312695844,4.76258705,2514.7,2514.2,3.97738508]
[1751312696047,0.7859,2514.7,2514.3,3.97713849]
[1751312696249,0.7859,2514.7,2514.2,0.5247]
[1751312696422,4.76258115,2514.7,2514.2,0.5247]
[1751312696921,4.76258115,2514.7,2514.2,4.50210272]
[1751312696922,0.7859,2514.7,2514.2,4.50210272]
[1751312697122,3.97654528,2514.8,2514.2,4.50210272]
[1751312697525,3.9766581,2514.7,2514.2,4.50210272]
[1751312697724,3.9766581,2514.7,2514.2,0.5247]
[1751312698057,3.97677638,2514.6,2514.2,0.5247]
[1751312698228,3.97705518,2514.5,2514.2,0.5247]
[1751312698418,4.85302044,2514.7,2514.2,0.5247]
[1751312698615,4.85302044,2514.7,2514.2,4.50208222]
[1751312698849,4.85302044,2514.7,2514.2,0.5247]
[1751312699451,3.97679723,2514.6,2514.2,0.5247]
[1751312699817,3.97679723,2514.6,2514.0,0.5247]
[1751312699818,3.97725161,2514.3,2514.0,0.5247]
[1751312700024,3.97772856,2514.0,2513.7,18.27452572]
[1751312700251,0.7871,2514.5,2513.7,17.1107]
[1751312700443,3.97741237,2514.2,2513.7,21.08883768]
[1751312700854,0.7871,2514.5,2513.7,0.5247]
[1751312700855,4.76405684,2514.5,2513.7,0.5247]
[1751312701049,3.97813468,2513.8,2513.6,6.586]
[1751312701256,0.8289,2514.0,2513.5,3.73552572]
[1751312701257,0.8289,2514.0,2513.5,1.16382572]
[1751312701424,0.8289,2514.0,2513.4,1.16382572]
[1751312701625,3.97795208,2513.9,2513.4,20.56459487]
[1751312701831,3.97805339,2513.8,2513.4,6.586]
[1751312702564,3.97805339,2513.8,2513.4,10.56465202]
[1751312702862,3.97805339,2513.8,2513.4,6.586]
[1751312703069,3.97821316,2513.7,2513.4,6.586]
[1751312703428,3.97849315,2513.6,2513.2,1.16382572]
[1751312703626,3.97849315,2513.6,2513.0,6.06404353]
[1751312703627,0.8183,2513.6,2512.9,1.16382572]
[1751312703828,0.8183,2513.6,2512.6,6.29731073]
[1751312703829,0.8183,2513.3,2512.7,1.16382572]
[1751312704064,0.8183,2513.3,2512.6,1.16382572]
[1751312704065,3.97959133,2512.9,2512.6,1.16382572]
[1751312704366,0.1984,2513.1,2512.7,0.1984]
[1751312704729,0.8183,2513.3,2512.6,0.5247]
[1751312704929,0.79562666,2513.7,2513.1,0.1984]
[1751312704930,3.97875473,2513.4,2513.1,0.1984]
[1751312705256,3.9788772,2513.3,2513.1,0.1984]
[1751312705940,4.74155551,2513.1,2512.6,1.68852572]
[1751312706141,5.06912346,2513.4,2512.9,0.1984]
[1751312706352,3.97901069,2513.2,2512.9,0.1984]
[1751312706866,3.97888456,2513.3,2512.9,0.1984]
[1751312707062,3.979133,2513.2,2512.9,0.1984]
[1751312707264,0.9796,2513.4,2512.3,1.68852572]
[1751312707265,3.9786743,2513.4,2512.3,1.68852572]
[1751312707566,4.17804264,2512.8,2512.4,0.1984]
[1751312708460,3.97989003,2512.7,2512.4,0.1984]
[1751312708663,4.17810448,2512.8,2512.4,0.1984]
[1751312708863,3.97983768,2512.7,2512.4,0.1984]
[1751312709065,0.1984,2512.8,2512.4,0.1984]
[1751312709286,0.7798,2513.2,2512.7,3.97966625]
[1751312709447,4.1773191,2513.3,2512.8,7.1117]
[1751312709766,4.75857554,2513.4,2512.9,0.1984]
[1751312710072,3.9784684,2513.6,2512.9,3.97939605]
[1751312710073,4.17693765,2513.5,2512.9,3.97939605]
[1751312710236,3.97876166,2513.4,2513.1,0.1984]
[1751312710440,4.99873159,2513.4,2513.1,0.1984]
[1751312710754,4.99875811,2513.4,2513.1,0.1984]
[1751312710931,1.01996993,2513.4,2513.1,0.1984]
[1751312711137,3.97865355,2513.5,2513.1,0.1984]
[1751312711337,3.97896012,2513.3,2513.1,0.1984]
[1751312711943,3.97876106,2513.4,2513.1,0.1984]
[1751312712154,7.0014156,2513.7,2513.1,0.1984]
[1751312712353,3.97865406,2513.5,2513.1,0.1984]
[1751312712558,4.67883947,2513.5,2513.1,0.1984]
[1751312712960,4.17660856,2513.7,2513.1,3.97904269]
[1751312713266,4.73778799,2513.9,2513.0,4.5040076]
[1751312713267,4.17646962,2513.8,2513.4,0.1984]
[1751312713466,3.97843277,2513.6,2513.4,0.1984]
[1751312713669,4.17651188,2513.8,2513.4,0.1984]
[1751312713854,3.9782185,2513.7,2513.4,0.1984]
[1751312714261,4.17654047,2513.8,2513.4,0.1984]
[1751312714773,5.27247639,2513.8,2513.4,0.1984]
[1751312714971,3.97828959,2513.7,2513.4,0.1984]
[1751312715279,1.29433592,2513.8,2513.0,0.5247]
[1751312715280,3.9786743,2513.4,2513.0,7.1127]
[1751312715483,3.97899092,2513.2,2513.1,0.1984]
[1751312717482,3.97890973,2513.3,2513.1,0.1984]
[1751312717775,3.97899092,2513.2,2513.1,0.1984]
[1751312718372,3.97887467,2513.3,2513.1,0.1984]
[1751312718762,3.97899092,2513.2,2513.1,0.1984]
[1751312718968,3.9789034,2513.3,2513.1,0.1984]
[1751312719884,0.7598,2513.4,2513.1,0.1984]
[1751312720057,0.7598,2513.4,2512.7,0.5247]
[1751312720058,0.7651,2513.4,2512.7,0.5247]
[1751312720255,3.97960557,2512.9,2512.7,0.1984]
[1751312721264,3.97962432,2512.8,2512.7,0.1984]
[1751312721782,3.97988015,2512.7,2512.3,0.5247]
[1751312721970,4.74433781,2513.1,2512.4,3.98025792]
[1751312722173,3.97923781,2513.1,2512.7,0.5247]
[1751312722354,3.97889878,2513.3,2512.8,3.97960905]
[1751312722554,3.97909699,2513.2,2513.0,0.1984]
[1751312722859,3.97914925,2513.1,2513.0,0.1984]
[1751312723161,3.97908536,2513.2,2513.0,0.1984]
[1751312723476,3.97914925,2513.1,2513.0,0.1984]
[1751312724183,3.97962243,2512.9,2512.7,0.1984]
[1751312724365,3.9793076,2513.0,2512.7,0.1984]
[1751312724366,3.97962432,2512.8,2512.7,0.1984]
[1751312724566,3.97980617,2512.7,2512.5,2.045]
[1751312724777,3.97994109,2512.6,2512.5,0.1984]
[1751312725185,3.97972305,2512.8,2512.5,0.1984]
[1751312725765,3.97957652,2512.9,2512.5,4.17848226]
[1751312725968,3.97957652,2512.9,2512.7,0.1984]
[1751312726691,3.97954817,2512.9,2512.7,0.1984]
[1751312726905,3.97860103,2513.5,2512.9,0.5247]
[1751312727074,1.09593592,2513.8,2513.0,0.55]
[1751312727279,3.97815456,2513.8,2513.2,3.97884276]
[1751312727596,3.977971,2513.9,2513.2,3.97884276]
[1751312727597,3.97820535,2513.7,2513.2,3.97884276]
[1751312727905,3.97810752,2513.8,2513.3,3.97882721]
[1751312728111,3.97832891,2513.7,2513.1,11.0917482]
[1751312728307,3.97860114,2513.5,2513.1,7.1127]
[1751312728507,3.97788297,2513.9,2513.1,7.1127]
[1751312728715,3.97828182,2513.7,2513.2,3.97893707]
[1751312728992,3.97828182,2513.7,2513.1,7.1127]
[1751312728993,3.97828182,2513.7,2513.1,11.09175628]
[1751312729194,3.97828182,2513.7,2513.2,3.97894822]
[1751312729565,3.97839733,2513.6,2513.1,11.09175699]
[1751312729786,4.65612092,2513.8,2513.1,11.09175699]
[1751312729787,3.97823545,2513.7,2513.2,3.97895716]
[1751312729984,4.65615866,2513.8,2513.1,11.09177962]
[1751312730188,3.97835784,2513.6,2513.1,7.1127]
[1751312730722,0.6780283,2513.8,2513.1,7.1127]
[1751312730723,4.6561579,2513.8,2513.2,3.97898712]
[1751312731027,4.6561579,2513.8,2513.3,3.97879997]
[1751312731387,4.7352345,2514.0,2513.4,0.5247]
[1751312731388,3.9778345,2514.0,2513.4,0.5247]
[1751312731587,3.9778345,2514.0,2513.4,4.50330077]
[1751312731988,3.97763687,2514.1,2513.4,4.50328922]
[1751312732190,0.47640568,2514.4,2513.7,3.97810529]
[1751312732415,3.97771841,2514.1,2513.7,6.587]
[1751312732606,3.9776963,2514.1,2513.7,6.587]
[1751312732915,3.97774372,2514.0,2513.7,6.587]
[1751312733121,3.97794913,2513.9,2513.7,6.587]
[1751312733312,0.7601,2514.1,2513.7,6.587]
[1751312733487,3.9779982,2513.9,2513.7,6.587]
[1751312733692,3.97772474,2514.0,2513.7,6.587]
[1751312734020,3.97801013,2513.9,2513.7,6.587]
[1751312734602,3.97804121,2513.8,2513.7,6.587]
[1751312734797,3.9779748,2513.9,2513.7,6.587]
[1751312735321,3.97804121,2513.8,2513.7,6.587]
[1751312735520,3.97796824,2513.9,2513.7,6.587]
[1751312735690,4.45160062,2514.0,2513.7,6.587]
[1751312735890,3.97791402,2513.9,2513.7,6.587]
[1751312736331,3.9777666,2514.0,2513.7,6.587]
[1751312736623,4.73776624,2514.1,2513.7,6.587]
[1751312736917,3.97749065,2514.2,2513.8,0.1984]
[1751312737124,3.97749065,2514.2,2513.8,0.7231]
[1751312737330,3.97725464,2514.3,2513.8,5.63147451]
[1751312737531,3.97745855,2514.2,2514.0,0.1984]
[1751312737901,4.17558647,2514.4,2514.0,0.1984]
[1751312738102,0.1984,2514.4,2514.0,0.1984]
[1751312738332,6.01987293,2514.6,2513.9,3.97784303]
[1751312738521,3.97701352,2514.5,2514.2,0.1984]
[1751312739111,2.043,2514.6,2514.2,0.1984]
[1751312739318,3.97654796,2514.8,2514.3,0.5247]
[1751312739518,3.97663523,2514.7,2514.4,0.1984]
[1751312739731,4.65561429,2514.8,2514.4,0.1984]
[1751312739906,3.97608647,2515.1,2514.4,0.5247]
[1751312740235,3.97608647,2515.1,2514.6,0.1984]
[1751312740236,4.17451012,2515.1,2514.6,0.1984]
[1751312740414,0.1984,2515.1,2514.6,3.97674536]
[1751312740617,4.80584168,2515.3,2514.7,3.97656396]
[1751312740936,5.00424168,2515.3,2514.9,0.1984]
[1751312741118,5.00429237,2515.3,2514.9,0.1984]
[1751312741313,3.97589195,2515.2,2514.9,0.1984]
[1751312741514,3.97599677,2515.1,2514.9,0.1984]
[1751312741718,3.97614314,2515.0,2514.9,0.1984]
[1751312741918,3.97609458,2515.1,2514.9,0.1984]
[1751312742121,3.97614314,2515.0,2514.9,0.1984]
[1751312742518,3.97614314,2515.0,2514.7,0.1984]
[1751312743537,3.9762269,2515.0,2514.7,0.1984]
[1751312743728,3.97645936,2514.8,2514.7,0.1984]
[1751312744037,4.72773505,2514.7,2514.5,0.1984]
[1751312744423,4.72763416,2514.7,2514.5,0.1984]
[1751312744616,1.0153,2514.9,2514.5,0.1984]
[1751312744805,0.1984,2514.9,2514.5,0.1984]
[1751312745004,0.1984,2514.9,2514.6,3.97677181]
[1751312745246,4.75299108,2515.1,2514.7,0.1984]
[1751312745421,4.17431393,2515.2,2514.7,4.17499316]
[1751312745610,4.17431393,2515.2,2514.8,0.5247]
[1751312745817,3.97591393,2515.2,2515.0,0.1984]
[1751312746149,3.97590718,2515.2,2515.0,0.1484]
[1751312746441,3.97569599,2515.3,2515.0,0.1484]
[1751312747537,0.1984,2515.4,2515.0,0.1484]
[1751312747538,4.17395245,2515.4,2515.0,0.1484]
[1751312747738,4.87336117,2515.4,2515.0,0.1484]
[1751312747932,3.97590208,2515.2,2515.0,0.1484]
[1751312748515,3.97598505,2515.1,2515.0,0.1484]
[1751312749541,3.97633614,2514.9,2514.6,0.5247]
[1751312749909,3.97621947,2515.0,2514.6,0.5247]
[1751312750111,0.1984,2515.3,2514.6,4.50140891]
[1751312750346,0.1984,2515.3,2514.9,0.1984]
[1751312750541,3.97591081,2515.2,2514.9,0.1984]
[1751312750918,3.97589261,2515.2,2514.9,0.1984]
[1751312751119,4.86083688,2515.2,2514.9,0.1984]
[1751312751320,4.86087054,2515.2,2514.9,0.1984]
[1751312751929,3.9760889,2515.1,2514.9,0.1984]
[1751312752250,3.97599394,2515.1,2514.9,0.1984]
[1751312752631,3.97614314,2515.0,2514.9,0.1984]
[1751312752830,3.97614314,2515.0,2514.6,0.5247]
[1751312752831,3.97631621,2514.9,2514.6,0.5247]
[1751312753032,3.97631621,2514.9,2514.8,0.1984]
[1751312754617,3.97631621,2514.9,2514.6,0.5247]
[1751312754618,3.97679578,2514.6,2514.2,2.5667]
[1751312754815,4.17474898,2514.9,2514.4,0.1984]
[1751312755253,3.97653425,2514.8,2514.4,0.1984]
[1751312755448,3.97663372,2514.7,2514.4,0.1984]
[1751312755650,3.97679019,2514.6,2514.4,0.1984]
[1751312757435,0.98576914,2514.8,2514.4,4.17546907]
[1751312757956,4.96226101,2514.8,2514.4,0.1984]
[1751312758127,3.97664716,2514.7,2514.4,0.1984]
[1751312758323,4.96226101,2514.8,2514.4,0.1984]
[1751312758324,4.96230856,2514.8,2514.4,0.1984]
[1751312758723,3.976622,2514.7,2514.4,0.1984]
[1751312759236,5.67104412,2515.2,2514.7,3.97659819]
[1751312759436,0.56710441,2515.1,2514.6,4.17510739]
[1751312759649,4.98449985,2515.2,2514.8,3.97639718]
[1751312759650,0.1984,2515.2,2514.8,3.97639718]
[1751312759855,0.1984,2515.2,2514.9,0.1984]
[1751312760057,3.97554089,2515.4,2514.9,4.17469975]
[1751312760245,3.97573233,2515.3,2514.9,0.1984]
[1751312760578,0.1984,2515.4,2514.9,0.1984]
[1751312760731,4.67244772,2515.4,2514.9,0.1984]
[1751312761547,3.97574013,2515.3,2514.9,0.1984]
[1751312761947,4.67238044,2515.4,2514.9,0.1984]
[1751312763007,3.97572924,2515.3,2514.9,0.1984]
[1751312763173,4.67239658,2515.4,2514.9,0.1984]
[1751312763370,4.5240319,2515.3,2514.9,0.1984]
[1751312764577,0.54825966,2515.3,2514.9,4.17467036]
[1751312764769,0.1984,2515.4,2515.2,3.97582148]
[1751312765088,3.97536232,2515.5,2515.2,0.1984]
[1751312765295,3.97536232,2515.5,2515.1,0.5247]
[1751312765296,3.97561044,2515.4,2514.8,0.5247]
[1751312765471,0.1984,2515.5,2515.1,0.1984]
[1751312765657,3.97582697,2515.2,2515.1,0.1984]
[1751312765857,3.97605868,2515.1,2514.8,0.1984]
[1751312766062,0.5959827,2515.2,2514.8,0.1984]
[1751312766290,3.97599312,2515.1,2514.8,0.1984]
[1751312766486,4.78940124,2514.9,2514.8,0.1984]
[1751312766683,4.78940124,2514.9,2514.4,1.16382572]
[1751312766684,3.97693378,2514.5,2514.4,0.1984]
[1751312766894,3.97693378,2514.5,2514.3,0.1984]
[1751312766895,3.97720394,2514.4,2514.3,0.1984]
[1751312767059,4.79006785,2514.5,2514.1,0.1984]
[1751312767060,1.40919338,2514.5,2514.1,0.1984]
[1751312767267,3.97746569,2514.2,2514.1,0.1984]
[1751312767574,3.97734128,2514.3,2514.1,0.1984]
[1751312768181,1.0115,2514.5,2514.1,0.1984]
[1751312768382,3.97710906,2514.4,2514.2,0.1984]
[1751312768693,4.79012287,2514.5,2514.2,0.1984]
[1751312768891,3.97709878,2514.4,2514.2,0.1984]
[1751312769099,3.97725012,2514.3,2514.2,0.1984]
[1751312769595,3.97740832,2514.2,2514.1,0.1984]
[1751312770094,3.9779509,2513.9,2513.6,11.68852572]
[1751312770393,3.9779509,2513.9,2513.8,0.1984]
[1751312770696,3.97835773,2513.6,2513.5,0.1984]
[1751312771362,3.97827758,2513.7,2513.5,0.1984]
[1751312771559,3.97809472,2513.8,2513.5,0.1984]
[1751312771766,3.97804831,2513.8,2513.5,0.1984]
[1751312772263,0.59619509,2513.9,2513.5,0.1984]
[1751312772490,4.17629929,2513.9,2513.5,0.1984]
[1751312772686,3.97789929,2513.9,2513.6,0.1984]
[1751312773092,3.97810979,2513.8,2513.6,0.1984]
[1751312773290,3.97782432,2514.0,2513.6,0.1984]
[1751312773473,4.97674672,2514.1,2513.6,4.17674208]
[1751312773792,6.78439178,2514.1,2513.6,4.17674208]
[1751312774165,3.97780404,2514.0,2513.6,0.1984]
[1751312774923,5.98369616,2514.1,2513.6,4.17674818]
[1751312775291,3.97773574,2514.0,2513.6,0.1984]
[1751312775627,3.97795407,2513.9,2513.6,0.1984]
[1751312776334,3.97780885,2514.0,2513.6,0.1984]
[1751312776627,1.31813913,2514.3,2513.7,0.5247]
[1751312776786,1.31813913,2514.3,2513.9,0.1984]
[1751312776787,3.9774202,2514.2,2513.9,0.1984]
[1751312776990,3.97814817,2513.8,2513.5,0.5247]
[1751312777218,3.97814817,2513.8,2513.6,0.1984]
[1751312777795,3.97819946,2513.7,2513.6,0.1984]
[1751312778510,0.1984,2514.1,2513.6,0.1984]
[1751312778701,3.97780091,2514.0,2513.6,0.1984]
[1751312779101,3.97788711,2513.9,2513.6,0.1984]
[1751312779337,0.8067,2513.9,2513.6,0.1984]
[1751312779544,3.97813069,2513.8,2513.6,0.1984]
[1751312779849,3.97819946,2513.7,2513.6,0.1984]
[1751312780000,3.97819946,2513.7,2513.2,0.5247]
[1751312780203,3.97829153,2513.7,2513.4,0.1984]
[1751312780431,4.87444085,2513.7,2513.4,0.1984]
[1751312780730,3.97837237,2513.6,2513.4,0.1984]
[1751312780913,0.89614932,2513.7,2513.4,0.1984]
[1751312781115,4.17650697,2513.8,2513.4,0.1984]
[1751312781324,3.97837948,2513.6,2513.4,0.1984]
[1751312781541,3.97851601,2513.5,2513.4,0.1984]
[1751312781699,3.97806015,2513.8,2513.0,0.5247]
[1751312782026,3.97893114,2513.3,2513.1,0.1984]
[1751312782226,3.97876447,2513.4,2513.1,0.1984]
[1751312782423,3.97889765,2513.3,2513.1,0.1984]
[1751312783437,3.97869218,2513.4,2513.1,0.1984]
[1751312783635,3.97899092,2513.2,2512.8,0.5247]
[1751312783835,3.97904845,2513.2,2512.9,0.1984]
[1751312784141,3.97912545,2513.2,2512.9,0.1984]
[1751312784325,4.17725877,2513.3,2512.9,0.1984]
[1751312784326,3.97916137,2513.1,2512.9,0.1984]
[1751312784503,0.1984,2513.3,2512.9,0.1984]
[1751312784714,4.17729663,2513.3,2512.9,0.1984]
[1751312785153,3.97901946,2513.2,2512.9,0.1984]
[1751312786052,5.04293538,2513.3,2512.9,0.1984]
[1751312787041,3.97899393,2513.2,2512.9,0.1984]
[1751312788059,1.06401874,2513.3,2512.9,0.1984]
[1751312788060,3.97917551,2513.1,2512.9,0.1984]
[1751312788355,3.97908635,2513.2,2512.9,0.1984]
[1751312788558,4.93131416,2513.2,2512.9,0.1984]
[1751312789127,0.95222781,2513.2,2512.9,0.1984]
[1751312790650,3.9792135,2513.1,2512.9,0.1984]
[1751312790845,3.9792135,2513.1,2512.1,5.14446262]
[1751312790846,3.97992372,2512.7,2512.1,5.14446262]
[1751312791050,3.97992372,2512.7,2512.4,0.1984]
[1751312791051,3.98003733,2512.6,2512.4,0.1984]
[1751312791359,3.98003733,2512.6,2512.1,3.9806369]